bitfinex/quotes_BTCUSD_20250308
["timestamp","ask_amount","ask_price","bid_price","bid_amount"]
[1741463925553,3.7624427,86516.0,86515.0,0.00489998]
[1741463926732,0.50504224,86516.0,86515.0,0.12749998]
[1741463928465,0.496494,86516.0,86515.0,0.12749998]
[1741463929028,0.10394888,86517.0,86516.0,0.0767]
[1741463929029,0.11550688,86517.0,86516.0,0.0767]
[1741463932548,0.011558,86517.0,86516.0,0.0767]
[1741463934445,0.48493,86519.0,86516.0,0.0767]
[1741463935614,0.184933,86518.0,86516.0,0.0767]
[1741463935911,0.011558,86517.0,86516.0,0.0767]
[1741463937362,0.011898,86517.0,86516.0,0.0767]
[1741463943968,0.013898,86517.0,86516.0,0.0767]
[1741463948841,0.013898,86517.0,86516.0,0.07687]
[1741463961801,0.011898,86517.0,86516.0,0.07687]
[1741463963836,0.013898,86517.0,86516.0,0.07687]
[1741463964399,0.011898,86517.0,86516.0,0.07687]
[1741463964936,0.012898,86517.0,86516.0,0.07687]
[1741463986028,0.012898,86517.0,86516.0,0.00017]
[1741463996192,0.11684688,86517.0,86516.0,0.00017]
[1741464002570,0.10528888,86517.0,86516.0,0.090828]
[1741464002911,0.10528888,86517.0,86516.0,0.13723434]
[1741464003113,0.10528888,86517.0,86516.0,0.12527]
[1741464003313,0.10428888,86517.0,86516.0,0.12527]
[1741464003512,0.10428888,86517.0,86516.0,0.136828]
[1741464004364,0.10528888,86517.0,86516.0,0.136828]
[1741464004565,0.10528888,86517.0,86516.0,0.12527]
[1741464004976,0.09181679,86519.0,86516.0,0.12527]
[1741464005148,0.011558,86517.0,86516.0,0.12527]
[1741464005532,0.00034,86520.0,86516.0,0.136828]
[1741464006255,0.00034,86520.0,86517.0,0.196492]
[1741464006803,0.011558,86517.0,86516.0,0.12527]
[1741464007469,0.196828,86520.0,86516.0,0.12527]
[1741464007868,0.011558,86519.0,86516.0,0.12527]
[1741464008828,0.197828,86520.0,86516.0,0.12527]
[1741464009032,0.196828,86520.0,86516.0,0.12527]
[1741464009445,0.196828,86520.0,86516.0,0.12627]
[1741464009935,0.011558,86519.0,86516.0,0.12527]
[1741464010554,0.184924,86522.0,86516.0,0.12527]
[1741464010788,0.18493,86520.0,86516.0,0.12527]
[1741464011091,0.011558,86520.0,86516.0,0.12527]
[1741464012483,0.196481,86522.0,86516.0,0.12527]
[1741464013896,0.197481,86522.0,86516.0,0.12527]
[1741464014265,0.011558,86519.0,86516.0,0.12527]
[1741464016824,0.011558,86520.0,86516.0,0.12527]
[1741464017248,0.196487,86520.0,86516.0,0.12527]
[1741464017956,0.196487,86520.0,86517.0,0.00788041]
[1741464020442,0.11589114,86522.0,86517.0,0.00788041]
[1741464020647,0.011557,86521.0,86517.0,0.00788041]
[1741464021568,0.11589114,86522.0,86517.0,0.00788041]
[1741464021569,0.0003398,86522.0,86521.0,0.011557]
[1741464021820,0.0003398,86522.0,86521.0,0.203697]
[1741464021973,0.0003398,86522.0,86521.0,0.2115557]
[1741464023416,0.0013398,86522.0,86521.0,0.21271129]
[1741464023819,0.0003398,86522.0,86521.0,0.21271129]
[1741464024019,0.0003398,86522.0,86521.0,0.21671129]
[1741464025916,0.0003398,86522.0,86521.0,0.26561129]
[1741464026117,0.0003398,86522.0,86521.0,0.26486204]
[1741464026901,0.0003398,86522.0,86521.0,0.2644557]
[1741464027106,0.0003398,86522.0,86521.0,0.26486204]
[1741464027348,0.0003398,86522.0,86521.0,0.2644557]
[1741464027549,0.0003398,86522.0,86521.0,0.26486204]
[1741464028052,0.0003398,86522.0,86521.0,0.2644557]
[1741464028484,0.0003398,86522.0,86521.0,0.26486204]
[1741464028896,0.0003398,86522.0,86521.0,0.2644557]
[1741464029140,0.0003398,86522.0,86521.0,0.0873587]
[1741464029345,0.0118968,86522.0,86521.0,0.1284587]
[1741464030379,0.0118968,86522.0,86521.0,0.0118587]
[1741464030822,0.011558,86517.0,86515.0,0.00489998]
[1741464031026,0.196492,86517.0,86515.0,0.00489998]
[1741464032608,0.196492,86517.0,86516.0,0.00517]
[1741464033594,0.196492,86517.0,86516.0,0.00017]
[1741464033849,0.196492,86517.0,86516.0,0.00317]
[1741464034835,0.496492,86517.0,86516.0,0.00317]
[1741464037827,0.3,86518.0,86516.0,0.00317]
[1741464037982,0.011558,86517.0,86516.0,0.00317]
[1741464038189,0.196492,86517.0,86516.0,0.00317]
[1741464043448,1.733868,86517.0,86516.0,0.00317]
[1741464043563,1.776469,86517.0,86516.0,0.00317]
[1741464044216,1.676479,86517.0,86516.0,0.00317]
[1741464044421,1.628609,86517.0,86516.0,0.00317]
[1741464045138,1.56629905,86517.0,86516.0,0.00317]
[1741464045897,1.57785705,86517.0,86516.0,0.00317]
[1741464046107,1.48023605,86517.0,86516.0,0.00317]
[1741464046518,1.41832405,86517.0,86516.0,0.00317]
[1741464048388,1.39714705,86517.0,86516.0,0.00317]
[1741464050599,1.19790105,86517.0,86516.0,0.00317]
[1741464051914,0.57357985,86517.0,86516.0,0.00017]
[1741464052123,1.5706227,86517.0,86516.0,0.00017]
[1741464052320,3.4881017,86517.0,86516.0,0.00017]
[1741464052497,3.5352207,86517.0,86516.0,0.00017]
[1741464052740,3.1932667,86517.0,86516.0,0.00017]
[1741464053445,2.9523097,86517.0,86516.0,0.00017]
[1741464054614,2.2727767,86517.0,86516.0,0.00017]
[1741464055092,2.1121507,86517.0,86516.0,0.00017]
[1741464055443,1.9187577,86517.0,86516.0,0.00017]
[1741464056060,1.95751618,86517.0,86516.0,0.00017]
[1741464056832,1.95751618,86517.0,86516.0,1e-06]
[1741464057185,1.97106106,86517.0,86516.0,1e-06]
[1741464057507,2.85756106,86517.0,86516.0,1e-06]
[1741464058124,2.85856106,86517.0,86516.0,1e-06]
[1741464058539,2.85756106,86517.0,86516.0,1e-06]
[1741464058736,0.496504,86512.0,86511.0,0.0007398]
[1741464058919,2.52573385,86512.0,86511.0,0.0007398]
[1741464059117,2.63009185,86512.0,86511.0,0.0007398]
[1741464059727,2.57478485,86512.0,86511.0,0.0007398]
[1741464059948,2.13529285,86512.0,86511.0,0.0007398]
[1741464060348,1.88256785,86512.0,86511.0,0.0007398]
[1741464060917,1.88956785,86512.0,86511.0,0.0017398]
[1741464061936,1.33634885,86512.0,86511.0,0.0017398]
[1741464062145,0.196556,86490.0,86487.0,0.07408981]
[1741464062369,0.196549,86492.0,86487.0,0.07408981]
[1741464062579,0.011561,86491.0,86488.0,0.00669866]
[1741464063255,0.196554,86490.0,86488.0,0.00669866]
[1741464064189,0.01621662,86492.0,86490.0,0.0481]
[1741464064376,0.01621662,86492.0,86491.0,0.011561]
[1741464064576,0.011561,86496.0,86491.0,0.00703124]
[1741464065181,0.011561,86496.0,86492.0,0.0798]
[1741464065383,0.2124532,86497.0,86493.0,0.00702268]
[1741464066064,0.001,86496.0,86493.0,0.00702268]
[1741464066888,0.001,86496.0,86493.0,0.00673668]
[1741464067474,0.2124532,86497.0,86493.0,0.00673668]
[1741464067675,0.2212517,86497.0,86493.0,0.00673668]
[1741464067869,0.011561,86496.0,86493.0,0.00673668]
[1741464068318,0.0362747,86497.0,86493.0,0.00673668]
[1741464069980,0.0247137,86497.0,86493.0,0.00673668]
[1741464070125,0.0159152,86497.0,86493.0,0.00673668]
[1741464070328,0.011561,86495.0,86493.0,0.00673668]
[1741464070558,0.196544,86494.0,86493.0,0.00673668]
[1741464070711,0.011561,86494.0,86493.0,0.00673668]
[1741464070922,0.011561,86495.0,86493.0,0.00673668]
[1741464071149,0.01578469,86497.0,86493.0,0.00673668]
[1741464071336,0.20531043,86498.0,86493.0,0.00673668]
[1741464071583,0.00877443,86498.0,86493.0,0.00673668]
[1741464071729,0.496529,86501.0,86493.0,0.00673668]
[1741464071932,0.3,86498.0,86493.0,0.00673668]
[1741464072163,0.3,86498.0,86495.0,0.011561]
[1741464072378,0.3,86498.0,86496.0,0.00776004]
[1741464072568,0.3,86498.0,86493.0,0.011561]
[1741464072767,0.3,86498.0,86494.0,0.00776711]
[1741464073510,0.31156,86499.0,86494.0,0.00776711]
[1741464073724,0.3,86499.0,86494.0,0.00776711]
[1741464073919,0.3,86499.0,86496.0,0.011561]
[1741464074265,0.3,86499.0,86497.0,0.0077565]
[1741464074910,0.02478789,86501.0,86497.0,0.0077565]
[1741464075113,0.3,86514.0,86502.0,0.0497]
[1741464075312,0.011559,86512.0,86504.0,0.01156]
[1741464075535,0.196506,86511.0,86503.0,0.0775]
[1741464075721,0.196511,86509.0,86505.0,0.00772822]
[1741464075925,0.196511,86509.0,86504.0,0.00773176]
[1741464076129,0.196511,86509.0,86503.0,0.0775]
[1741464076351,0.011559,86509.0,86503.0,0.0775]
[1741464076688,0.0003398,86517.0,86514.0,0.184941]
[1741464076857,0.0003398,86517.0,86516.0,0.011558]
[1741464077196,0.0003398,86517.0,86516.0,0.09539142]
[1741464077627,0.0003398,86517.0,86516.0,0.0942357]
[1741464078879,0.0003398,86517.0,86516.0,0.09539135]
[1741464079205,0.0003398,86517.0,86516.0,0.09539134]
[1741464079356,0.0003398,86517.0,86516.0,0.0942357]
[1741464083106,0.0003398,86517.0,86516.0,0.1242377]
[1741464084451,0.0003398,86517.0,86516.0,0.1357957]
[1741464085912,0.0003398,86517.0,86516.0,0.26595148]
[1741464086127,0.0003398,86517.0,86516.0,0.2647957]
[1741464090135,0.0003398,86517.0,86516.0,0.8071957]
[1741464092730,0.0003398,86517.0,86516.0,0.8321957]
[1741464092954,0.0003398,86517.0,86516.0,0.84673655]
[1741464096643,0.0003398,86517.0,86516.0,0.8071957]
[1741464097282,0.0003398,86517.0,86516.0,0.6906357]
[1741464097494,0.0003398,86517.0,86516.0,0.8071557]
[1741464098550,0.0003398,86517.0,86516.0,0.2647557]
[1741464103981,0.0003398,86517.0,86516.0,0.2165557]
[1741464105065,0.0003398,86517.0,86516.0,0.21771133]
[1741464106162,0.0003398,86517.0,86516.0,0.2165557]
[1741464106678,0.0003398,86517.0,86516.0,0.26631121]
[1741464106820,0.0003398,86517.0,86516.0,0.2651557]
[1741464109222,0.0003398,86517.0,86516.0,0.1486357]
[1741464109371,0.184919,86525.0,86517.0,0.196492]
[1741464109555,0.184919,86525.0,86518.0,0.00759826]
[1741464109756,0.011557,86523.0,86519.0,0.11648]
[1741464109993,0.011557,86525.0,86519.0,0.128038]
[1741464110396,0.184914,86527.0,86520.0,0.00759119]
[1741464110605,0.184914,86527.0,86520.0,0.01914919]
[1741464110804,0.011556,86531.0,86520.0,0.01914919]
[1741464111007,0.196465,86530.0,86522.0,0.011557]
[1741464111207,0.011556,86528.0,86522.0,0.011557]
[1741464111501,0.196463,86530.0,86523.0,0.01913759]
[1741464111697,0.011556,86529.0,86523.0,0.01913759]
[1741464113767,0.011556,86530.0,86524.0,0.011557]
[1741464114149,0.011556,86530.0,86525.0,0.00758232]
[1741464114353,0.011556,86531.0,86525.0,0.01913932]
[1741464114714,0.184904,86532.0,86526.0,0.011557]
[1741464114922,0.011556,86533.0,86526.0,0.01913579]
[1741464115142,0.311555,86536.0,86529.0,0.011556]
[1741464115378,0.10614919,86535.0,86530.0,0.11648]
[1741464115577,0.10614919,86535.0,86530.0,0.12404466]
[1741464116042,0.011555,86536.0,86530.0,0.12404466]
[1741464116237,0.011555,86536.0,86531.0,0.011556]
[1741464116467,0.011555,86536.0,86531.0,0.01911712]
[1741464116681,0.311555,86537.0,86531.0,0.01911712]
[1741464116843,0.311555,86537.0,86532.0,0.011556]
[1741464117251,0.311555,86537.0,86533.0,0.00755406]
[1741464117848,0.3,86537.0,86533.0,0.00755406]
[1741464118839,0.311555,86537.0,86533.0,0.00755406]
[1741464119422,0.3,86537.0,86533.0,0.00755406]
[1741464119598,0.011555,86540.0,86533.0,0.00755406]
[1741464119599,0.3,86540.0,86537.0,0.011555]
[1741464119807,0.3,86540.0,86536.0,0.011555]
[1741464120124,0.011554,86546.0,86539.0,0.011555]
[1741464120341,0.011554,86544.0,86539.0,0.011555]
[1741464120636,0.196438,86541.0,86540.0,0.00752933]
[1741464121137,0.011555,86541.0,86536.0,0.011555]
[1741464121312,0.3,86544.0,86538.0,0.011555]
[1741464121512,0.011554,86545.0,86540.0,0.011555]
[1741464121714,0.3,86546.0,86541.0,0.011555]
[1741464121916,0.011554,86545.0,86541.0,0.0075258]
[1741464122268,0.3,86546.0,86541.0,0.0190808]
[1741464122399,0.21192379,86548.0,86541.0,0.0190808]
[1741464122602,0.21192379,86548.0,86542.0,0.011555]
[1741464122813,0.011554,86545.0,86543.0,0.00751459]
[1741464123045,0.21192379,86548.0,86541.0,0.011555]
[1741464123046,0.011554,86546.0,86541.0,0.011555]
[1741464123367,0.01550079,86548.0,86544.0,0.00751106]
[1741464123569,0.196424,86548.0,86541.0,0.011555]
[1741464123893,0.311554,86550.0,86544.0,0.011554]
[1741464124028,0.311554,86550.0,86541.0,0.196437]
[1741464124029,0.311554,86550.0,86542.0,0.00751812]
[1741464124229,0.011554,86549.0,86542.0,0.00751812]
[1741464124427,0.31530355,86550.0,86544.0,0.011554]
[1741464124662,0.31530355,86550.0,86546.0,0.011554]
[1741464124663,0.01530355,86550.0,86546.0,0.011554]
[1741464124838,0.1040893,86551.0,86546.0,0.011554]
[1741464125071,0.1040893,86551.0,86547.0,0.00748663]
[1741464125272,0.1040893,86551.0,86549.0,0.184865]
[1741464125471,0.1040893,86551.0,86550.0,0.011554]
[1741464125677,0.1040893,86551.0,86550.0,0.00747596]
[1741464125882,0.1040893,86551.0,86550.0,0.011554]
[1741464126259,0.1040893,86551.0,86550.0,0.01902996]
[1741464127502,0.0001699,86551.0,86550.0,0.01902996]
[1741464128332,0.011551,86566.0,86550.0,0.01902996]
[1741464128333,0.3,86566.0,86559.0,0.011552]
[1741464128550,0.3,86566.0,86561.0,0.011552]
[1741464128924,0.3,86566.0,86562.0,0.01897069]
[1741464129356,0.3,86567.0,86562.0,0.01897069]
[1741464129955,0.311551,86567.0,86562.0,0.01897069]
[1741464130159,0.3,86567.0,86562.0,0.01897069]
[1741464130366,0.01562441,86572.0,86565.0,0.011552]
[1741464130569,0.31562441,86572.0,86566.0,0.011551]
[1741464130780,0.311551,86570.0,86566.0,0.00740436]
[1741464131142,0.311551,86570.0,86565.0,0.011552]
[1741464131370,0.311551,86570.0,86567.0,0.00740083]
[1741464131567,0.011551,86569.0,86566.0,0.00739456]
[1741464131783,0.011551,86569.0,86568.0,0.0073875]
[1741464132140,0.311551,86570.0,86568.0,0.0073875]
[1741464132347,0.311551,86570.0,86565.0,0.011552]
[1741464132550,0.311551,86570.0,86569.0,0.00738398]
[1741464132728,0.311551,86570.0,86563.0,0.0799]
[1741464132729,0.196374,86569.0,86563.0,0.0799]
[1741464132935,0.184827,86567.0,86563.0,0.0799]
[1741464133476,0.184827,86567.0,86549.0,0.184865]
[1741464133477,0.196392,86561.0,86554.0,0.196407]
[1741464133676,0.011552,86561.0,86556.0,0.196404]
[1741464133878,0.011552,86560.0,86555.0,0.11644]
[1741464134204,0.196386,86564.0,86557.0,0.011553]
[1741464134401,0.011552,86563.0,86557.0,0.011553]
[1741464135006,0.19639,86562.0,86557.0,0.011553]
[1741464135273,0.011552,86559.0,86555.0,0.11644]
[1741464135879,0.184847,86558.0,86555.0,0.11644]
[1741464136139,0.011553,86552.0,86546.0,0.196426]
[1741464136354,0.184844,86560.0,86552.0,0.196412]
[1741464136633,0.184844,86560.0,86553.0,0.011553]
[1741464136967,0.184844,86560.0,86554.0,0.00740825]
[1741464137375,0.011552,86558.0,86555.0,0.1164]
[1741464137823,0.011552,86558.0,86556.0,0.00740119]
[1741464138472,0.196402,86557.0,86556.0,0.00740119]
[1741464139452,0.011552,86559.0,86556.0,0.00740119]
[1741464140042,0.184844,86560.0,86556.0,0.00740119]
[1741464140985,0.196396,86560.0,86556.0,0.00740119]
[1741464141364,0.196399,86558.0,86556.0,0.00740119]
[1741464142255,0.196396,86560.0,86556.0,0.00740119]
[1741464143443,0.011552,86559.0,86556.0,0.00740119]
[1741464144485,0.011552,86561.0,86556.0,0.00740119]
[1741464144685,0.011552,86562.0,86557.0,0.196402]
[1741464145050,0.196391,86562.0,86557.0,0.00740311]
[1741464145255,0.196399,86558.0,86557.0,0.00740311]
[1741464145386,0.196399,86558.0,86550.0,0.011554]
[1741464145588,0.196426,86546.0,86539.0,0.077]
[1741464145803,0.196426,86546.0,86540.0,0.312839]
[1741464148581,0.196426,86546.0,86540.0,0.1164]
[1741464148779,0.196432,86544.0,86540.0,0.1164]
[1741464148974,0.011554,86544.0,86540.0,0.1164]
[1741464149527,0.011554,86550.0,86544.0,0.184876]
[1741464149726,0.011554,86550.0,86545.0,0.011554]
[1741464150784,0.01193865,86550.0,86545.0,0.011554]
[1741464151923,0.01193865,86550.0,86546.0,0.00744585]
[1741464152122,0.00038465,86550.0,86546.0,0.00744585]
[1741464152393,0.00038465,86550.0,86547.0,0.011554]
[1741464152598,0.00038465,86550.0,86548.0,0.011554]
[1741464152802,0.00038465,86550.0,86549.0,0.011554]
[1741464152952,0.00038465,86550.0,86549.0,0.01898926]
[1741464153156,0.00038465,86550.0,86549.0,0.13538926]
[1741464157452,0.00038465,86550.0,86549.0,0.13654456]
[1741464157612,0.00038465,86550.0,86549.0,0.21304445]
[1741464158256,0.00038465,86550.0,86549.0,0.21188926]
[1741464158885,0.00038465,86550.0,86549.0,0.21304448]
[1741464159090,0.00038465,86550.0,86549.0,0.26224448]
[1741464159237,0.00038465,86550.0,86549.0,0.26108926]
[1741464159638,0.00038465,86550.0,86549.0,0.26147998]
[1741464159883,0.00038465,86550.0,86549.0,0.26108926]
[1741464160448,0.00038465,86550.0,86549.0,0.26147998]
[1741464161010,0.00038465,86550.0,86549.0,0.26108926]
[1741464161148,0.01851092,86550.0,86549.0,0.26108926]
[1741464163886,0.01851092,86550.0,86549.0,0.21188926]
[1741464164311,0.01851092,86550.0,86549.0,0.13534926]
[1741464164873,0.01851092,86550.0,86549.0,0.12379526]
[1741464165075,0.00038465,86550.0,86549.0,0.12379526]
[1741464165278,0.184842,86561.0,86549.0,0.12379526]
[1741464165534,0.184854,86555.0,86549.0,0.12379526]
[1741464165892,0.011553,86553.0,86549.0,0.12379526]
[1741464166549,0.19651932,86556.0,86549.0,0.32021426]
[1741464167360,0.19651932,86556.0,86549.0,0.13534926]
[1741464167568,0.184855,86554.0,86549.0,0.12379526]
[1741464167971,0.01812758,86553.0,86549.0,0.12379526]
[1741464170948,0.01812758,86553.0,86549.0,0.12396506]
[1741464171247,0.01812758,86553.0,86550.0,0.011554]
[1741464171538,0.01812758,86553.0,86551.0,0.00743718]
[1741464172952,0.01812758,86553.0,86552.0,0.196412]
[1741464173351,0.01812758,86553.0,86552.0,0.20384565]
[1741464175701,0.01812758,86553.0,86552.0,0.01898665]
[1741464176038,0.00011532,86556.0,86552.0,0.00633777]
[1741464176231,0.00011532,86556.0,86553.0,0.011553]
[1741464176437,0.00011532,86556.0,86555.0,0.011553]
[1741464176637,0.00011532,86556.0,86555.0,0.01788017]
[1741464177263,0.00011532,86556.0,86555.0,0.00632717]
[1741464177461,0.00011532,86556.0,86551.0,0.011553]
[1741464177660,0.01166832,86556.0,86552.0,0.00633777]
[1741464177842,0.01166832,86556.0,86551.0,0.011553]
[1741464178041,0.01166832,86556.0,86552.0,0.00633777]
[1741464178241,0.01166832,86556.0,86551.0,0.011553]
[1741464178575,0.196406,86555.0,86552.0,0.00633777]
[1741464179004,0.21453348,86555.0,86549.0,0.1280838]
[1741464179159,0.21453348,86555.0,86553.0,0.00633423]
[1741464179339,0.21453348,86555.0,86549.0,0.1280838]
[1741464179539,0.02968048,86555.0,86554.0,0.0063307]
[1741464179753,0.01812748,86555.0,86550.0,0.011554]
[1741464179940,0.01812748,86555.0,86554.0,0.00633138]
[1741464180516,0.01812748,86555.0,86550.0,0.011554]
[1741464180718,0.01812748,86555.0,86554.0,0.00633138]
[1741464180924,0.01812748,86555.0,86550.0,0.011554]
[1741464181222,0.01812748,86555.0,86554.0,0.00633138]
[1741464181770,0.01812748,86555.0,86551.0,0.011553]
[1741464181900,0.01812748,86555.0,86554.0,0.00633138]
[1741464182105,0.01812748,86555.0,86551.0,0.011553]
[1741464182459,0.01812748,86555.0,86554.0,0.00661717]
[1741464182752,0.01812748,86555.0,86554.0,0.01817017]
[1741464182888,0.01812748,86555.0,86554.0,0.011553]
[1741464183258,0.01812748,86555.0,86554.0,0.01817017]
[1741464187142,0.23184734,86568.0,86554.0,0.01817017]
[1741464187336,0.011551,86568.0,86557.0,0.011553]
[1741464187742,0.196378,86567.0,86558.0,0.0066004]
[1741464187941,0.011551,86567.0,86558.0,0.0066004]
[1741464188499,0.011551,86567.0,86551.0,0.1304134]
[1741464188500,0.011551,86566.0,86551.0,0.1304134]
[1741464188739,0.196381,86567.0,86556.0,0.011553]
[1741464189309,0.011551,86569.0,86557.0,0.01980441]
[1741464189875,0.04325368,86571.0,86558.0,0.011552]
[1741464190075,0.196374,86569.0,86559.0,0.00824082]
[1741464190279,0.196376,86568.0,86556.0,0.011553]
[1741464190462,0.21450217,86568.0,86557.0,0.00825141]
[1741464190796,0.02967717,86568.0,86557.0,0.00825141]
[1741464190941,0.01812617,86568.0,86557.0,0.00825141]
[1741464191143,0.02967717,86568.0,86557.0,0.00825141]
[1741464191592,0.02967717,86568.0,86554.0,0.011553]
[1741464191787,0.01812617,86568.0,86558.0,0.00824612]
[1741464191968,0.01812617,86568.0,86555.0,0.011553]
[1741464192181,0.01812617,86568.0,86559.0,0.00824082]
[1741464192386,0.3,86571.0,86559.0,0.11628]
[1741464192590,0.3,86571.0,86560.0,0.00823553]
[1741464192792,0.01812623,86566.0,86560.0,0.00823553]
[1741464193025,0.011551,86570.0,86560.0,0.00823553]
[1741464194028,0.01449016,86572.0,86560.0,0.00823553]
[1741464194435,0.3,86573.0,86564.0,0.011552]
[1741464194652,0.3,86573.0,86566.0,0.011551]
[1741464194855,0.011549,86581.0,86567.0,0.0773]
[1741464195051,0.01430858,86573.0,86568.0,0.011551]
[1741464195277,7.126e-05,86577.0,86568.0,0.011551]
[1741464195471,7.126e-05,86577.0,86567.0,0.08549846]
[1741464195472,7.126e-05,86577.0,86569.0,0.12446787]
[1741464196001,0.02640631,86577.0,86569.0,0.12446787]
[1741464197098,0.01812493,86576.0,86569.0,0.12446787]
[1741464197476,0.31812493,86576.0,86569.0,0.12446787]
[1741464197787,0.31812493,86576.0,86569.0,0.11628]
[1741464197788,0.011551,86570.0,86569.0,0.11628]
[1741464199571,0.31812493,86576.0,86569.0,0.11628]
[1741464199904,0.02967493,86576.0,86569.0,0.11628]
[1741464200310,0.3,86574.0,86569.0,0.11628]
[1741464200517,0.31155,86574.0,86569.0,0.11628]
[1741464200877,0.3,86574.0,86570.0,0.0782]
[1741464201280,0.3,86574.0,86572.0,0.011551]
[1741464201482,0.01812493,86576.0,86571.0,0.00816952]
[1741464201680,0.01812493,86576.0,86572.0,0.00816423]
[1741464202246,0.01812493,86576.0,86572.0,0.01971523]
[1741464202440,0.01812493,86576.0,86574.0,0.05995]
[1741464202962,0.01812493,86576.0,86575.0,0.00813538]
[1741464203373,0.01812493,86576.0,86574.0,0.0484]
[1741464203571,0.01812493,86576.0,86575.0,0.00813538]
[1741464203734,0.01812493,86576.0,86575.0,0.28835045]
[1741464203929,7.126e-05,86577.0,86576.0,0.09425]
[1741464204389,7.126e-05,86577.0,86576.0,0.10237784]
[1741464206863,0.01819292,86577.0,86576.0,0.10237784]
[1741464207288,0.01819292,86577.0,86576.0,0.09082784]
[1741464207676,0.01819292,86577.0,86576.0,0.21861784]
[1741464207807,0.01836272,86577.0,86576.0,0.21861784]
[1741464208396,0.01836272,86577.0,86576.0,0.40342584]
[1741464210028,0.01828186,86577.0,86576.0,0.40342584]
[1741464219180,0.0001698,86577.0,86576.0,0.40342584]
[1741464219620,0.0001698,86577.0,86576.0,0.40376544]
[1741464221977,0.01829058,86577.0,86576.0,0.40376544]
[1741464225967,0.01829058,86577.0,86576.0,0.28809303]
[1741464226527,0.01829058,86577.0,86576.0,0.29964303]
[1741464228849,0.01829058,86577.0,86576.0,0.37754303]
[1741464235342,0.01329058,86577.0,86576.0,0.37754303]
[1741464235742,0.0003398,86586.0,86576.0,0.37754303]
[1741464236068,0.0003398,86586.0,86585.0,0.011549]
[1741464238341,0.00877342,86596.0,86586.0,0.011549]
[1741464238534,0.011548,86593.0,86587.0,0.01177366]
[1741464238755,0.011548,86593.0,86587.0,0.011549]
[1741464238921,0.01813239,86593.0,86587.0,0.011549]
[1741464239086,0.01812048,86592.0,86588.0,0.011548]
[1741464239696,0.01812048,86592.0,86589.0,0.011548]
[1741464239915,0.01812048,86592.0,86591.0,0.011548]
[1741464240317,0.01812048,86592.0,86591.0,0.01195434]
[1741464240546,0.01812048,86592.0,86591.0,0.011548]
[1741464242717,0.01829028,86592.0,86591.0,0.011548]
[1741464243064,0.01829028,86592.0,86587.0,0.011549]
[1741464243671,0.01829028,86592.0,86588.0,0.011548]
[1741464243847,0.01829028,86592.0,86587.0,0.011549]
[1741464244387,0.01829028,86592.0,86589.0,0.011548]
[1741464244587,0.01829028,86592.0,86587.0,0.011549]
[1741464245274,0.02983828,86592.0,86586.0,0.127709]
[1741464246217,0.196324,86591.0,86584.0,0.011549]
[1741464246620,0.02983828,86592.0,86586.0,0.011549]
[1741464246821,0.02983828,86592.0,86587.0,0.011549]
[1741464247384,0.011548,86590.0,86584.0,0.011549]
[1741464247606,0.18478,86589.0,86584.0,0.011549]
[1741464247760,0.011548,86590.0,86584.0,0.011549]
[1741464248783,0.196324,86591.0,86584.0,0.011549]
[1741464249126,0.02983828,86592.0,86587.0,0.011549]
[1741464249323,0.196324,86591.0,86585.0,0.011549]
[1741464249607,0.011548,86591.0,86586.0,0.011549]
[1741464249947,0.011548,86591.0,86585.0,0.011549]
[1741464250149,0.02983828,86592.0,86585.0,0.011549]
[1741464250344,0.0117178,86592.0,86586.0,0.011549]
[1741464250592,0.0001698,86592.0,86587.0,0.011549]
[1741464251422,0.0001698,86592.0,86588.0,0.011548]
[1741464252039,0.0001698,86592.0,86589.0,0.011548]
[1741464252440,0.0001698,86592.0,86588.0,0.011548]
[1741464252800,0.0001698,86592.0,86585.0,0.011549]
[1741464252801,0.196324,86591.0,86585.0,0.011549]
[1741464253204,0.01812015,86590.0,86585.0,0.011549]
[1741464253803,0.02966815,86590.0,86585.0,0.011549]
[1741464253999,0.02966815,86590.0,86583.0,0.011549]
[1741464254249,0.196324,86591.0,86587.0,0.0003396]
[1741464254404,0.184776,86591.0,86587.0,0.0003396]
[1741464255068,0.011548,86590.0,86587.0,0.0003396]
[1741464255414,0.0001698,86592.0,86588.0,0.011548]
[1741464256861,0.0001698,86592.0,86589.0,0.011548]
[1741464257366,0.01828964,86592.0,86589.0,0.011548]
[1741464258369,0.01828964,86592.0,86588.0,0.011548]
[1741464259987,0.01828964,86592.0,86591.0,0.011548]
[1741464268815,0.01828964,86592.0,86591.0,0.127628]
[1741464269007,0.01828964,86592.0,86591.0,0.12878273]
[1741464269834,0.01828964,86592.0,86591.0,0.127628]
[1741464270795,0.01828964,86592.0,86591.0,0.11608]
[1741464271487,0.01828964,86592.0,86591.0,0.127628]
[1741464271669,0.01828964,86592.0,86591.0,0.11608]
[1741464272373,0.184776,86591.0,86587.0,0.0003396]
[1741464272529,0.196331,86588.0,86587.0,0.0003396]
[1741464275762,0.21445228,86588.0,86587.0,0.0003396]
[1741464280548,0.22305552,86588.0,86587.0,0.0003396]
[1741464280959,0.52305552,86588.0,86587.0,0.0003396]
[1741464281163,0.196356,86577.0,86576.0,0.0003396]
[1741464281376,1.69098385,86577.0,86576.0,0.0003396]
[1741464281612,1.80635685,86577.0,86576.0,0.0003396]
[1741464282029,1.8481493,86577.0,86576.0,0.0003396]
[1741464282231,1.7755393,86577.0,86576.0,0.0003396]
[1741464282800,1.7385183,86577.0,86576.0,0.0003396]
[1741464286071,0.496378,86567.0,86566.0,0.0003396]
[1741464286250,0.496378,86567.0,86566.0,0.00041086]
[1741464286860,0.51450458,86567.0,86566.0,0.00041086]
[1741464289626,0.63058458,86567.0,86566.0,0.00041086]
[1741464289982,0.612458,86567.0,86566.0,0.00041086]
[1741464292917,0.63058438,86567.0,86566.0,0.00041086]
[1741464297384,0.72352523,86567.0,86566.0,0.00041086]
[1741464297712,2.10400223,86567.0,86566.0,0.00041086]
[1741464297904,1.72502223,86567.0,86566.0,0.00041086]
[1741464298550,1.57890823,86567.0,86566.0,0.00041086]
[1741464303379,1.62630823,86567.0,86566.0,0.00041086]
[1741464303577,0.57691,86553.0,86552.0,0.0003396]
[1741464303760,0.69299,86553.0,86552.0,0.0003396]
[1741464303960,1.698262,86553.0,86552.0,0.0003396]
[1741464304197,0.970642,86553.0,86552.0,0.0003396]
[1741464306011,0.976642,86553.0,86552.0,0.0013396]